bitfinex-derivatives/quotes_BTCF0:USTF0_20250827
["timestamp","ask_amount","ask_price","bid_price","bid_amount"]
[1756294348734,1.4955492,111300.0,111290.0,0.54235619]
[1756294348936,1.8355492,111300.0,111290.0,0.56526619]
[1756294349335,1.66076917,111300.0,111290.0,0.59809619]
[1756294349535,1.31175,111300.0,111290.0,0.64380619]
[1756294349736,1.66076917,111300.0,111290.0,0.64380619]
[1756294350137,1.9700758,111300.0,111290.0,0.64380619]
[1756294350643,1.9710758,111300.0,111290.0,0.64380619]
[1756294353644,1.9710758,111300.0,111290.0,0.5311197]
[1756294354149,1.9700758,111300.0,111290.0,0.5311197]
[1756294354443,1.9710758,111300.0,111290.0,0.5311197]
[1756294355939,1.6510758,111300.0,111290.0,0.5037597]
[1756294356245,2.0110758,111300.0,111290.0,0.5037597]
[1756294356846,2.0110758,111300.0,111290.0,0.4709297]
[1756294357042,2.0110758,111300.0,111290.0,0.5037597]
[1756294357937,2.0110758,111300.0,111290.0,0.5311197]
[1756294359345,2.0110758,111300.0,111290.0,0.3608]
[1756294360043,2.0110758,111300.0,111290.0,0.40744]
[1756294361143,2.0110758,111300.0,111290.0,0.43047]
[1756294361345,1.82174917,111300.0,111290.0,0.51012]
[1756294362046,1.47273,111300.0,111290.0,0.51012]
[1756294362445,1.47273,111300.0,111290.0,0.85913917]
[1756294362642,0.5923,111300.0,111290.0,0.85913917]
[1756294362846,0.54336,111300.0,111290.0,0.85913917]
[1756294363046,0.54336,111300.0,111290.0,1.67753917]
[1756294363548,0.60597,111300.0,111290.0,1.67753917]
[1756294364047,0.63488,111300.0,111290.0,1.67753917]
[1756294364448,0.60597,111300.0,111290.0,1.67753917]
[1756294365346,0.60597,111300.0,111290.0,2.03833917]
[1756294365750,0.60597,111300.0,111290.0,2.15102566]
[1756294366047,0.60497,111300.0,111290.0,2.15102566]
[1756294366550,0.4999,111300.0,111290.0,2.03833917]
[1756294366850,0.4999,111300.0,111290.0,2.28833917]
[1756294367749,0.4999,111300.0,111290.0,2.40102566]
[1756294370150,0.53463,111300.0,111290.0,2.40102566]
[1756294370550,0.4999,111300.0,111290.0,2.40102566]
[1756294371046,0.56251,111300.0,111290.0,2.40102566]
[1756294371449,0.56251,111300.0,111290.0,1.58262566]
[1756294371652,0.59142,111300.0,111290.0,2.40302566]
[1756294371849,0.59142,111300.0,111290.0,2.40402566]
[1756294372553,0.59142,111300.0,111290.0,2.40398566]
[1756294372751,0.59142,111300.0,111290.0,1.58562566]
[1756294372952,0.59142,111300.0,111290.0,2.15398566]
[1756294373252,0.59142,111300.0,111290.0,1.33562566]
[1756294373452,0.59142,111300.0,111290.0,2.15398566]
[1756294374249,0.59142,111300.0,111290.0,2.15198566]
[1756294374454,0.59142,111300.0,111290.0,2.15398566]
[1756294375055,0.59142,111300.0,111290.0,2.15298566]
[1756294375856,0.59142,111300.0,111290.0,2.15098566]
[1756294378156,0.59142,111300.0,111290.0,1.33262566]
[1756294378357,0.59142,111300.0,111290.0,2.15098566]
[1756294378655,0.59142,111300.0,111290.0,2.03829917]
[1756294379956,0.56251,111300.0,111290.0,2.03829917]
[1756294380155,0.56251,111300.0,111290.0,1.68928]
[1756294380355,0.56251,111300.0,111290.0,2.03829917]
[1756294380752,0.4999,111300.0,111290.0,2.03829917]
[1756294382258,0.4999,111300.0,111290.0,2.03929917]
[1756294382259,0.5626,111300.0,111290.0,2.03929917]
[1756294383058,0.5919,111300.0,111290.0,2.03929917]
[1756294383254,0.65206,111300.0,111290.0,1.69024]
[1756294383454,0.65206,111300.0,111290.0,2.03925917]
[1756294384558,0.65206,111300.0,111290.0,2.04125917]
[1756294384958,0.65206,111300.0,111290.0,2.04025917]
[1756294385159,0.65206,111300.0,111290.0,2.04125917]
[1756294385360,0.65206,111300.0,111290.0,2.03925917]
[1756294385959,0.65206,111300.0,111290.0,2.03825917]
[1756294387161,0.65206,111300.0,111290.0,1.21993917]
[1756294387362,0.65206,111300.0,111290.0,2.03821917]
[1756294388363,0.65206,111300.0,111290.0,1.21993917]
[1756294388662,0.65206,111300.0,111290.0,2.19984643]
[1756294389162,0.65206,111300.0,111290.0,1.85082726]
[1756294389360,0.65206,111300.0,111290.0,2.19984643]
[1756294389560,0.65206,111300.0,111290.0,2.03821917]
[1756294391059,0.62276,111300.0,111290.0,2.03821917]
[1756294391261,0.4999,111300.0,111290.0,2.03821917]
[1756294391857,0.4999,111300.0,111290.0,2.31821917]
[1756294392063,0.31397,111300.0,111290.0,2.86269591]
[1756294392457,0.31397,111300.0,111290.0,2.75935527]
[1756294393057,0.31397,111300.0,111290.0,2.7509974]
[1756294393257,0.13143713,111300.0,111290.0,2.7509974]
[1756294394459,0.0293,111310.0,111290.0,2.6627474]
[1756294394763,0.0993,111310.0,111300.0,0.70981917]
[1756294394966,0.0983,111310.0,111300.0,0.99241917]
[1756294395264,0.2298,111310.0,111300.0,0.99241917]
[1756294395460,0.24815,111310.0,111300.0,0.71241917]
[1756294395860,0.27116,111310.0,111300.0,0.71241917]
[1756294396066,0.35266,111310.0,111300.0,0.71241917]
[1756294396465,0.27116,111310.0,111300.0,0.71241917]
[1756294396768,0.2298,111310.0,111300.0,0.71241917]
[1756294398267,0.24815,111310.0,111300.0,0.71241917]
[1756294398467,0.27116,111310.0,111300.0,0.71241917]
[1756294398667,0.3045,111310.0,111300.0,0.71241917]
[1756294399162,0.3233,111310.0,111300.0,0.71241917]
[1756294399360,0.35266,111310.0,111300.0,1.53061917]
[1756294399767,0.3233,111310.0,111300.0,1.53061917]
[1756294400066,0.35266,111310.0,111300.0,1.53061917]
[1756294403372,0.35266,111310.0,111300.0,1.64320438]
[1756294403671,0.35266,111310.0,111300.0,1.64420438]
[1756294404970,0.35266,111310.0,111300.0,1.53161917]
[1756294405171,0.35266,111310.0,111300.0,1.53061917]
[1756294405769,0.35266,111310.0,111300.0,1.53057917]
[1756294405972,0.35266,111310.0,111300.0,1.52957917]
[1756294406567,0.35266,111310.0,111300.0,1.53057917]
[1756294407272,0.35266,111310.0,111300.0,1.18156]
[1756294407568,0.35266,111310.0,111300.0,1.7048019]
[1756294408878,0.35266,111310.0,111300.0,1.7071019]
[1756294409279,0.27116,111310.0,111300.0,1.53268938]
[1756294409476,0.24815,111310.0,111300.0,1.53268938]
[1756294409775,0.30754,111310.0,111300.0,1.53268938]
[1756294411178,0.30754,111310.0,111300.0,1.53368938]
[1756294412277,0.30754,111310.0,111300.0,1.64627459]
[1756294413782,0.30754,111310.0,111300.0,1.53368938]
[1756294414174,0.2298,111310.0,111300.0,1.53368938]
[1756294414374,0.2015,111310.0,111300.0,1.53368938]
[1756294414577,0.23128,111310.0,111300.0,1.69531664]
[1756294415078,0.26328,111310.0,111300.0,1.69431664]
[1756294415275,0.26328,111310.0,111300.0,1.53268938]
[1756294415588,0.26328,111310.0,111300.0,1.53468938]
[1756294416276,0.29067,111310.0,111300.0,1.53468938]
[1756294418684,0.29067,111310.0,111300.0,1.53268938]
[1756294419383,0.23128,111310.0,111300.0,1.53268938]
[1756294419681,0.16128,111310.0,111300.0,1.53268938]
[1756294419881,0.22067,111310.0,111300.0,1.53268938]
[1756294420083,0.22067,111310.0,111300.0,1.53468938]
[1756294420284,0.19328,111310.0,111300.0,1.53468938]
[1756294420684,0.19328,111310.0,111300.0,1.53568938]
[1756294421486,0.16128,111310.0,111300.0,1.53568938]
[1756294422682,0.16128,111310.0,111300.0,1.55568938]
[1756294422887,0.16128,111310.0,111300.0,1.81568938]
[1756294423786,0.16128,111310.0,111300.0,1.81468938]
[1756294424086,0.16128,111310.0,111300.0,1.81929938]
[1756294427293,0.16128,111310.0,111300.0,1.00121938]
[1756294427492,0.16128,111310.0,111300.0,1.81925938]
[1756294427688,0.16128,111310.0,111300.0,1.00121938]
[1756294427894,0.22067,111310.0,111300.0,1.81925938]
[1756294428293,0.22067,111310.0,111300.0,1.00121938]
[1756294428594,0.28073,111310.0,111300.0,1.53925938]
[1756294429387,0.28073,111310.0,111300.0,1.71363702]
[1756294429694,0.28073,111310.0,111300.0,1.71263702]
[1756294430091,0.28073,111310.0,111300.0,1.71363702]
[1756294430597,0.28073,111310.0,111300.0,1.71263702]
[1756294430794,0.28073,111310.0,111300.0,1.71363702]
[1756294430994,0.28073,111310.0,111300.0,1.71163702]
[1756294431194,0.28073,111310.0,111300.0,1.71263702]
[1756294431395,0.28073,111310.0,111300.0,1.87426428]
[1756294432191,0.20258,111310.0,111300.0,1.87426428]
[1756294432798,0.26197,111310.0,111300.0,1.87426428]
[1756294433800,0.26197,111310.0,111300.0,1.87326428]
[1756294434000,0.26197,111310.0,111300.0,1.87426428]
[1756294434598,0.26197,111310.0,111300.0,1.71263702]
[1756294435003,0.26197,111310.0,111300.0,1.71163702]
[1756294435300,0.26197,111310.0,111300.0,1.71263702]
[1756294438904,0.23458,111310.0,111300.0,1.71263702]
[1756294440707,0.23458,111310.0,111300.0,2.07343702]
[1756294441705,0.20258,111310.0,111300.0,2.07343702]
[1756294443711,0.18073,111310.0,111300.0,2.07343702]
[1756294443913,0.16128,111310.0,111300.0,2.07343702]
[1756294444412,0.16128,111310.0,111300.0,2.35343702]
[1756294444607,0.16128,111310.0,111300.0,1.55023]
[1756294444815,0.16128,111310.0,111300.0,2.07343702]
[1756294445009,0.19306,111310.0,111300.0,1.25539702]
[1756294445216,0.19306,111310.0,111300.0,1.54911]
[1756294445217,0.28205,111310.0,111300.0,1.54911]
[1756294445404,0.28205,111310.0,111300.0,2.07231702]
[1756294447615,0.28205,111310.0,111300.0,2.07131702]
[1756294447816,0.28205,111310.0,111300.0,2.07331702]
[1756294448417,0.28205,111310.0,111300.0,1.25539702]
[1756294448616,0.28205,111310.0,111300.0,2.07331702]
[1756294448816,0.28205,111310.0,111300.0,2.07231702]
[1756294449208,1.13365351,111310.0,111300.0,0.73119]
[1756294449413,1.13365351,111310.0,111300.0,0.3628]
[1756294450316,1.13365351,111310.0,111300.0,0.47554888]
[1756294450516,1.13365351,111310.0,111300.0,0.47722888]
[1756294450717,1.13365351,111310.0,111300.0,0.47827888]
[1756294450917,1.13365351,111310.0,111300.0,0.47722888]
[1756294451819,1.13365351,111310.0,111300.0,0.47454888]
[1756294454020,1.13365351,111310.0,111300.0,0.3618]
[1756294454221,1.13365351,111310.0,111300.0,0.3608]
[1756294454522,1.13565351,111310.0,111300.0,0.3608]
[1756294456522,2.21517702,111310.0,111300.0,0.3608]
[1756294457820,1.95357351,111310.0,111300.0,0.3608]
[1756294460918,1.95357351,111310.0,111290.0,0.73515239]
[1756294461125,0.41194351,111300.0,111290.0,0.73788239]
[1756294461325,0.72194351,111300.0,111290.0,0.73788239]
[1756294461516,0.72194351,111300.0,111290.0,0.47627888]
[1756294461822,0.72194351,111300.0,111290.0,0.73788239]
[1756294462524,0.69354702,111300.0,111290.0,0.47627888]
[1756294462818,0.41194351,111300.0,111290.0,0.47627888]
[1756294463024,1.03354702,111300.0,111290.0,0.47354888]
[1756294465825,1.03354702,111300.0,111290.0,0.49382341]
[1756294466522,0.51034,111300.0,111290.0,0.49550341]
[1756294466726,1.28826,111300.0,111290.0,0.49655341]
[1756294466926,1.81146702,111300.0,111290.0,0.49655341]
[1756294467331,1.80146702,111300.0,111290.0,0.49655341]
[1756294469727,1.80146702,111300.0,111290.0,0.49550341]
[1756294470828,1.80146702,111300.0,111290.0,0.38275453]
[1756294471228,1.49146702,111300.0,111290.0,0.36248]
[1756294471428,1.81146702,111300.0,111290.0,0.36248]
[1756294472032,1.29826,111300.0,111290.0,0.36248]
[1756294472233,1.82146702,111300.0,111290.0,0.00168]
[1756294472426,1.82146702,111300.0,111290.0,0.3608]
[1756294473032,2.32136702,111300.0,111290.0,0.3608]
[1756294473826,2.32136702,111300.0,111290.0,0.47354888]
[1756294478732,2.32136702,111300.0,111290.0,0.11274888]
[1756294478932,2.32136702,111300.0,111290.0,0.47354888]
[1756294480430,2.32136702,111300.0,111290.0,0.49335177]
[1756294480735,2.32136702,111300.0,111290.0,0.75495528]
[1756294481134,1.50344702,111300.0,111290.0,0.75495528]
[1756294481329,2.32136702,111300.0,111290.0,0.75522528]
[1756294481540,1.50344702,111300.0,111290.0,0.75522528]
[1756294482032,2.32136702,111300.0,111290.0,0.75522528]
[1756294486940,2.32136702,111300.0,111290.0,0.49362177]
[1756294487143,2.32136702,111300.0,111290.0,0.75495528]
[1756294488244,2.32136702,111300.0,111290.0,0.75522528]
[1756294488544,2.1329422,111300.0,111290.0,0.82996528]
[1756294488742,2.1941822,111300.0,111290.0,0.85982528]
[1756294490346,2.1941822,111300.0,111290.0,0.59822177]
[1756294490644,2.2844222,111300.0,111290.0,0.59822177]
[1756294493345,2.2844222,111300.0,111290.0,0.85982528]
[1756294495846,2.2844222,111300.0,111290.0,0.59822177]
[1756294496446,2.2844222,111300.0,111290.0,0.85982528]
[1756294496645,2.2844222,111300.0,111290.0,0.88742528]
[1756294497941,1.4693,111300.0,111290.0,0.88742528]
[1756294498247,2.34250702,111300.0,111290.0,0.88742528]
[1756294499446,1.52458702,111300.0,111290.0,0.88742528]
[1756294499647,2.08078351,111300.0,111290.0,0.88742528]
[1756294499947,1.73078351,111300.0,111290.0,0.88742528]
[1756294503849,1.99238702,111300.0,111290.0,0.88742528]
[1756294504047,1.99238702,111300.0,111290.0,0.7746764]
[1756294504444,1.4353,111300.0,111290.0,0.7746764]
[1756294504749,1.40613,111300.0,111290.0,0.7746764]
[1756294505049,1.43785,111300.0,111290.0,0.7746764]
[1756294505342,0.62005,111300.0,111290.0,1.0246764]
[1756294505945,0.62005,111300.0,111290.0,0.7746764]
[1756294506144,0.62005,111300.0,111290.0,0.88752265]
[1756294507449,0.5183,111300.0,111290.0,1.14912616]
[1756294507645,0.54629,111300.0,111290.0,0.7746764]
[1756294508045,0.54629,111300.0,111290.0,0.88752265]
[1756294508354,0.4999,111300.0,111290.0,1.71912616]
[1756294508553,0.4999,111300.0,111290.0,1.60627991]
[1756294509150,0.4999,111300.0,111290.0,1.60727991]
[1756294509452,0.4999,111300.0,111290.0,1.60827991]
[1756294509953,0.4999,111300.0,111290.0,1.60727991]
[1756294510153,0.4999,111300.0,111290.0,1.60827991]
[1756294511557,0.4999,111300.0,111290.0,1.72095306]
[1756294512058,0.4999,111300.0,111290.0,2.42599991]
[1756294513654,0.4999,111300.0,111290.0,2.5386243]
[1756294515760,0.4999,111300.0,111290.0,2.42599991]
[1756294516264,0.4999,111300.0,111290.0,2.43545884]
[1756294517759,0.4999,111300.0,111290.0,2.43745884]
[1756294518263,0.4999,111300.0,111290.0,2.43445884]
[1756294518465,0.4999,111300.0,111290.0,2.43745884]
[1756294518668,0.4999,111300.0,111290.0,2.43945884]
[1756294520869,0.4999,111300.0,111290.0,2.43645884]
[1756294521168,0.4999,111300.0,111290.0,2.43745884]
[1756294521768,0.4999,111300.0,111290.0,2.43445884]
[1756294522068,0.4999,111300.0,111290.0,2.43645884]
[1756294522470,0.4999,111300.0,111290.0,2.50794058]
[1756294522669,0.4999,111300.0,111290.0,2.49848165]
[1756294525065,0.4999,111300.0,111290.0,1.68076165]
[1756294525370,0.4999,111300.0,111290.0,2.66910878]
[1756294525669,0.4999,111300.0,111290.0,1.85158878]
[1756294525870,0.4999,111300.0,111290.0,2.66910878]
[1756294526270,0.4999,111300.0,111290.0,1.85158878]
[1756294526568,0.4999,111300.0,111290.0,1.84238891]
[1756294526768,0.4999,111300.0,111290.0,2.65990891]
[1756294527772,0.4999,111300.0,111290.0,2.66944421]
[1756294528568,0.4999,111300.0,111290.0,2.50781695]
[1756294528768,0.4999,111300.0,111290.0,2.50777695]
[1756294530676,0.4999,111300.0,111290.0,2.50773695]
[1756294535582,0.4999,111300.0,111290.0,1.69029695]
[1756294535779,0.4999,111300.0,111290.0,2.50769695]
[1756294537582,0.4999,111300.0,111290.0,2.66932421]
[1756294538282,0.50301,111300.0,111290.0,2.66932421]
[1756294538780,0.56352,111300.0,111290.0,1.85192421]
[1756294538982,0.50301,111300.0,111290.0,2.66928421]
[1756294539184,0.50301,111300.0,111290.0,2.50765695]
[1756294540083,0.50301,111300.0,111290.0,2.66928421]
[1756294540482,0.50301,111300.0,111290.0,2.41928421]
[1756294541180,0.50301,111300.0,111290.0,2.93088772]
[1756294541985,0.44863,111300.0,111290.0,2.93088772]
[1756294543088,0.44863,111300.0,111290.0,2.76926046]
[1756294543788,0.44863,111300.0,111290.0,2.9301251]
[1756294545488,0.00311,111300.0,111290.0,2.9300451]
[1756294545687,0.343068,111320.0,111290.0,2.9300451]
[1756294545888,0.403928,111320.0,111310.0,1.33309702]
[1756294546084,0.403928,111320.0,111310.0,2.51629892]
[1756294546480,0.403928,111320.0,111310.0,1.9930919]
[1756294546686,0.403928,111320.0,111310.0,2.51629892]
[1756294547386,0.403928,111320.0,111310.0,1.69901892]
[1756294547589,0.403928,111320.0,111310.0,2.51629892]
[1756294547786,0.491968,111320.0,111310.0,2.51629892]
[1756294548293,0.492968,111320.0,111310.0,2.51629892]
[1756294549493,0.491968,111320.0,111310.0,2.53629892]
[1756294549693,0.491968,111320.0,111310.0,2.83629892]
[1756294550196,0.491968,111320.0,111310.0,2.99816356]
[1756294550690,0.463398,111320.0,111310.0,2.67816356]
[1756294550897,0.463398,111320.0,111310.0,2.99816356]
[1756294551101,0.463398,111320.0,111310.0,2.94991965]
[1756294551592,0.491968,111320.0,111310.0,2.04598263]
[1756294552098,0.491968,111320.0,111310.0,2.33633614]
[1756294552288,0.491968,111320.0,111310.0,2.36827614]
[1756294552490,0.491968,111320.0,111310.0,2.36727614]
[1756294552690,0.491968,111320.0,111310.0,2.36827614]
[1756294553192,0.491968,111320.0,111310.0,1.55103614]
[1756294553392,0.491968,111320.0,111310.0,2.36823614]
[1756294553695,0.491968,111320.0,111310.0,1.28943263]
[1756294553891,0.491968,111320.0,111310.0,2.36823614]
[1756294554294,0.491968,111320.0,111310.0,1.55103614]
[1756294554494,0.491968,111320.0,111310.0,2.36823614]
[1756294555591,0.491968,111320.0,111310.0,1.55103614]
[1756294555785,0.491968,111320.0,111310.0,2.36923614]
[1756294556194,0.491968,111320.0,111310.0,2.25861541]
[1756294557792,0.491968,111320.0,111310.0,2.25661541]
[1756294558096,0.491968,111320.0,111310.0,1.9970119]
[1756294558296,0.491968,111320.0,111310.0,2.25861541]
[1756294560597,0.491968,111320.0,111310.0,2.25857541]
[1756294560998,0.491968,111320.0,111310.0,2.25657541]
[1756294561301,0.491968,111320.0,111310.0,1.44141541]
[1756294561494,0.491968,111320.0,111310.0,2.25657541]
[1756294561692,0.491968,111320.0,111310.0,2.25857541]
[1756294565596,0.491968,111320.0,111310.0,2.41744005]
[1756294565796,0.491968,111320.0,111310.0,2.41944005]
[1756294566099,0.491968,111320.0,111310.0,2.41744005]
[1756294566299,0.491968,111320.0,111310.0,2.41944005]
[1756294567201,0.491968,111320.0,111310.0,2.25857541]
[1756294567402,0.491968,111320.0,111310.0,2.25657541]
[1756294567702,0.491968,111320.0,111310.0,2.25857541]
[1756294569197,0.463398,111320.0,111310.0,2.25857541]
[1756294569404,0.311128,111320.0,111310.0,3.20452887]
[1756294569604,0.280648,111320.0,111310.0,2.94292536]
[1756294569799,0.280648,111320.0,111310.0,2.99120664]
[1756294570902,0.1396049,111340.0,111330.0,0.03834]
[1756294571102,0.5242549,111340.0,111330.0,1.6481272]
[1756294571600,0.8048549,111340.0,111330.0,1.6481272]
[1756294572802,0.8058549,111340.0,111330.0,1.6481272]
[1756294573804,0.8058549,111340.0,111330.0,1.27381]
[1756294574006,0.8058549,111340.0,111330.0,1.53541351]
[1756294577007,0.8058549,111340.0,111330.0,0.71829351]
[1756294577208,1.06745841,111340.0,111330.0,1.53537351]
[1756294577408,1.06745841,111340.0,111330.0,1.89617351]
[1756294578609,1.06745841,111340.0,111330.0,1.63457]
[1756294578807,1.06745841,111340.0,111330.0,1.89617351]
[1756294580909,0.8058549,111340.0,111330.0,1.89617351]
[1756294581105,0.7160849,111340.0,111330.0,1.89617351]
[1756294581309,0.7507349,111340.0,111330.0,1.89617351]
[1756294581507,0.7779749,111340.0,111330.0,1.89617351]
[1756294581812,0.8058549,111340.0,111330.0,1.89617351]
[1756294582007,0.8058549,111340.0,111330.0,2.04728369]
[1756294582309,0.8058549,111340.0,111330.0,2.3088872]
[1756294584511,0.8058549,111340.0,111330.0,2.3088472]
[1756294585111,1.06745841,111340.0,111330.0,2.3088472]
[1756294585611,1.06745841,111340.0,111330.0,2.3088072]
[1756294586512,1.06745841,111340.0,111330.0,1.4918072]
[1756294586714,1.06745841,111340.0,111330.0,2.3088072]
[1756294586916,0.8058549,111340.0,111330.0,2.3088072]
[1756294588207,0.8058549,111340.0,111330.0,1.4918072]
[1756294588510,0.8058549,111340.0,111330.0,2.3088072]
[1756294589914,1.06745841,111340.0,111330.0,2.3088072]
[1756294590417,1.06745841,111340.0,111330.0,2.30869043]
[1756294592414,0.8058549,111340.0,111330.0,2.30869043]
[1756294592715,1.06745841,111340.0,111330.0,2.30869043]
[1756294592908,0.8058549,111340.0,111330.0,2.30869043]
[1756294594516,0.7779749,111340.0,111330.0,2.30869043]
[1756294595009,0.7779749,111340.0,111330.0,2.19609351]
[1756294595414,0.6974849,111340.0,111330.0,2.19609351]
[1756294595815,0.6974849,111340.0,111330.0,2.30869043]
[1756294596118,0.7323249,111340.0,111330.0,2.30869043]
[1756294597313,0.6974849,111340.0,111330.0,2.30869043]
[1756294597509,0.7323249,111340.0,111330.0,2.30869043]
[1756294599019,0.7323249,111340.0,111330.0,2.57029394]
[1756294599821,0.6559649,111340.0,111330.0,2.57029394]
[1756294600021,0.3059649,111340.0,111330.0,2.57029394]
[1756294600212,0.3059649,111340.0,111330.0,2.30869043]
[1756294600417,0.3059649,111340.0,111330.0,2.57029394]
[1756294600614,0.3408049,111340.0,111330.0,2.57029394]
[1756294601016,0.2966,111340.0,111330.0,2.57029394]
[1756294601222,0.2966,111340.0,111330.0,3.13029394]
[1756294601827,0.2966,111340.0,111330.0,3.01769702]
[1756294602219,0.07162124,111360.0,111330.0,3.01769702]
[1756294602220,0.03767124,111360.0,111330.0,3.38277825]
[1756294602414,0.43627124,111360.0,111350.0,1.35747682]
[1756294602627,0.41767124,111360.0,111350.0,2.17791682]
[1756294603125,0.41767124,111360.0,111350.0,1.91631331]
[1756294603425,0.42877124,111360.0,111350.0,1.91631331]
[1756294604025,0.49111124,111360.0,111350.0,1.91631331]
[1756294604227,0.49111124,111360.0,111350.0,1.6547098]
[1756294604421,0.49111124,111360.0,111350.0,1.80364351]
[1756294604720,0.42877124,111360.0,111350.0,1.80364351]
[1756294605126,0.42977124,111360.0,111350.0,1.80364351]
[1756294607122,0.40138124,111360.0,111350.0,1.88182648]
[1756294607323,0.0121,111360.0,111350.0,2.51749423]
[1756294607528,0.04049,111360.0,111350.0,2.50749423]
[1756294607729,0.04049,111360.0,111350.0,2.3950335]
[1756294608027,0.04049,111360.0,111350.0,2.4050335]
[1756294608228,0.04049,111360.0,111350.0,2.1050335]
[1756294608424,0.04049,111360.0,111350.0,2.21741649]
[1756294608625,0.10283,111360.0,111350.0,1.39697649]
[1756294608925,0.04049,111360.0,111350.0,2.0888335]
[1756294609131,0.04049,111360.0,111350.0,2.1088335]
[1756294609929,0.10283,111360.0,111350.0,2.1088335]
[1756294610630,0.0769871,111360.0,111350.0,1.2845935]
[1756294610833,0.1118271,111360.0,111350.0,1.95953012]
[1756294612134,0.1118271,111360.0,111350.0,1.95949012]
[1756294612432,0.1118271,111360.0,111350.0,1.69788661]
[1756294612633,0.1118271,111360.0,111350.0,1.95949012]
[1756294613634,0.1118271,111360.0,111350.0,1.13533012]
[1756294613826,0.39466086,111370.0,111360.0,0.3095229]
[1756294614020,0.73404525,111370.0,111360.0,0.95989641]
[1756294614632,0.47244174,111370.0,111360.0,0.95989641]
[1756294614926,0.56095576,111370.0,111360.0,0.95989641]
[1756294615132,0.62183576,111370.0,111360.0,0.95989641]
[1756294615335,0.62283576,111370.0,111360.0,0.95989641]
[1756294615834,0.71356576,111370.0,111360.0,0.95989641]
[1756294616033,0.71356576,111370.0,111360.0,0.6982929]
[1756294616235,0.71356576,111370.0,111360.0,0.95989641]
[1756294616732,0.71356576,111370.0,111360.0,0.93192641]
[1756294617032,0.71356576,111370.0,111360.0,0.6982929]
[1756294617533,0.71356576,111370.0,111360.0,0.6703229]
[1756294617728,0.71356576,111370.0,111360.0,0.6361929]
[1756294617933,0.96356576,111370.0,111360.0,0.5489729]
[1756294618229,0.96356576,111370.0,111360.0,0.6236629]
[1756294618429,0.70196225,111370.0,111360.0,0.6704829]
[1756294618732,0.77524574,111370.0,111360.0,0.6984529]
[1756294618935,1.03684925,111370.0,111360.0,0.6984529]
[1756294619128,1.52564925,111370.0,111360.0,0.6984529]
[1756294619937,2.34932925,111370.0,111360.0,0.6984529]
[1756294620540,2.34932925,111370.0,111360.0,0.6704829]
[1756294621441,2.34932925,111370.0,111360.0,0.6428229]
[1756294622040,2.34932925,111370.0,111360.0,0.6716029]
[1756294622432,1.26404574,111370.0,111360.0,0.96054641]
[1756294622633,2.34900925,111370.0,111360.0,0.96054641]
[1756294622834,2.34900925,111370.0,111360.0,0.6989429]
[1756294623639,2.34900925,111370.0,111360.0,0.78394303]
[1756294624039,2.34900925,111370.0,111360.0,0.6086929]
[1756294624741,2.34900925,111370.0,111360.0,0.6413229]
[1756294625130,2.34900925,111370.0,111360.0,0.6086929]
[1756294625341,2.34900925,111370.0,111360.0,0.5895329]
[1756294625841,2.09900925,111370.0,111360.0,0.6691129]
[1756294626139,2.09900925,111370.0,111360.0,0.78145303]
[1756294627444,1.27564925,111370.0,111360.0,1.07039654]
[1756294627938,1.27325925,111370.0,111360.0,1.07039654]
[1756294628139,1.01165574,111370.0,111360.0,1.33200005]
[1756294628339,1.27325925,111370.0,111360.0,1.33200005]
[1756294628540,1.27225925,111370.0,111360.0,1.33300005]
[1756294628843,1.27225925,111370.0,111360.0,1.07139654]
[1756294629142,1.27225925,111370.0,111360.0,1.07239654]
[1756294629339,1.16652576,111370.0,111360.0,0.96005641]
[1756294629732,1.19897576,111370.0,111360.0,0.95905641]
[1756294629934,1.19897576,111370.0,111360.0,0.96005641]
[1756294630442,0.93737225,111370.0,111360.0,1.22165992]
[1756294630637,0.93737225,111370.0,111360.0,1.33400005]
[1756294631140,0.90492225,111370.0,111360.0,1.33400005]
[1756294631445,0.80675225,111370.0,111360.0,1.33400005]
[1756294631646,0.78815225,111370.0,111360.0,1.33400005]
[1756294632041,0.52543439,111370.0,111360.0,1.69400005]
[1756294632241,0.55788439,111370.0,111360.0,1.69400005]
[1756294632539,0.58811439,111370.0,111360.0,1.33400005]
[1756294632841,0.52543439,111370.0,111360.0,1.15979303]
[1756294633145,0.52543439,111370.0,111360.0,1.68400005]
[1756294634247,0.55788439,111370.0,111360.0,1.68400005]
[1756294635047,0.52543439,111370.0,111360.0,1.68400005]
[1756294635247,0.49818439,111370.0,111360.0,1.68400005]
[1756294635442,0.49818439,111370.0,111360.0,1.68200005]
[1756294635648,0.58811439,111370.0,111360.0,1.68400005]
[1756294636247,0.58811439,111370.0,111360.0,1.68300005]
[1756294636546,0.58811439,111370.0,111360.0,1.68400005]
[1756294636741,0.58811439,111370.0,111360.0,2.50812005]
[1756294636949,0.8497179,111370.0,111360.0,1.89631654]
[1756294637150,0.8497179,111370.0,111360.0,2.23631654]
[1756294637348,0.58811439,111370.0,111360.0,2.49792005]
[1756294637548,0.8497179,111370.0,111360.0,2.49792005]
[1756294637749,0.58811439,111370.0,111360.0,2.49792005]
[1756294638050,0.8497179,111370.0,111360.0,2.49792005]
[1756294638346,0.8497179,111370.0,111360.0,2.38557992]
[1756294638848,0.8497179,111370.0,111360.0,1.8623729]
[1756294639048,0.58811439,111370.0,111360.0,2.29866409]
[1756294639249,0.8497179,111370.0,111360.0,2.29866409]
[1756294639450,0.8497179,111370.0,111360.0,1.47418409]
[1756294639647,0.8497179,111370.0,111360.0,2.29866409]
[1756294640650,0.8497179,111370.0,111360.0,2.03706058]
[1756294640844,0.58811439,111370.0,111360.0,2.03706058]
[1756294641044,0.8497179,111370.0,111360.0,2.03706058]
[1756294641550,0.58811439,111370.0,111360.0,2.03706058]
[1756294641746,0.8497179,111370.0,111360.0,1.21258058]
[1756294641952,0.8497179,111370.0,111360.0,2.03722058]
[1756294642152,0.9109479,111370.0,111360.0,1.77557707]
[1756294642353,0.64934439,111370.0,111360.0,2.29878409]
[1756294642652,0.9109479,111370.0,111360.0,2.29878409]
[1756294642852,0.64934439,111370.0,111360.0,2.29878409]
[1756294649359,0.46658726,111370.0,111360.0,2.29878409]
[1756294649561,0.46658726,111370.0,111360.0,2.29810409]
[1756294649756,0.46658726,111370.0,111360.0,1.47418409]
[1756294649964,0.46658726,111370.0,111360.0,2.29790409]
[1756294650461,0.46658726,111370.0,111360.0,2.29786409]
[1756294650660,0.46658726,111370.0,111360.0,1.77465707]
[1756294650859,0.43635726,111370.0,111360.0,2.29786409]
[1756294651065,0.46765726,111370.0,111360.0,2.29786409]
[1756294651565,0.47677896,111370.0,111360.0,2.29786409]
[1756294651966,0.47677896,111370.0,111360.0,1.77465707]
[1756294652165,0.47677896,111370.0,111360.0,2.29786409]